fUSD/lending_fUSD_20240531
["ID","MTS","AMOUNT","RATE_DAILY","PERIOD"]
[328339320,1717188646227,-158.31215,0.00032876,7]
[328339321,1717188646236,-500.0,0.00032876,11]
[328339322,1717188646245,-500.0,0.00032876,11]
[328339323,1717188646254,-403.17,0.00032876,11]
[328339324,1717188646263,-500.0,0.00032876,11]
[328339325,1717188646272,-500.0,0.00032876,11]
[328339327,1717188646281,-500.0,0.00032876,11]
[328339329,1717188646290,-500.0,0.00032876,11]
[328339331,1717188646299,-500.0,0.00032876,11]
[328339333,1717188646307,-550.49331962,0.00032876,11]
[328339334,1717188646317,-500.0,0.00032876,11]
[328339336,1717188646326,-500.0,0.00032876,11]
[328339338,1717188646334,-500.0,0.00032876,11]
[328339339,1717188646343,-500.0,0.00032876,11]
[328339341,1717188646353,-500.0,0.00032876,11]
[328339343,1717188646362,-500.0,0.00032876,11]
[328339346,1717188646374,-500.0,0.00032876,11]
[328339347,1717188646383,-507.62721603,0.00032876,11]
[328339349,1717188646392,-500.0,0.00032876,11]
[328339351,1717188646401,-500.0,0.00032876,11]
[328339353,1717188646410,-500.0,0.00032876,11]
[328339355,1717188646419,-500.0,0.00032876,11]
[328339357,1717188646428,-500.0,0.00032876,11]
[328339359,1717188646437,-500.0,0.00032876,11]
[328339361,1717188646447,-500.0,0.00032876,11]
[328339363,1717188646456,-182.5,0.00032876,11]
[328339365,1717188646465,-500.0,0.00032876,11]
[328339375,1717188646590,-500.0,0.00032876,11]
[328339378,1717188646601,-500.0,0.00032876,11]
[328339380,1717188646611,-500.0,0.00032876,11]
[328339382,1717188646620,-517.05562564,0.00032876,11]
[328339383,1717188646629,-151.0,0.00032876,7]
[328339385,1717188646638,-151.0,0.00032876,7]
[328339387,1717188646647,-296.908343,0.00032876,7]
[328339389,1717188646656,-500.0,0.00032876,11]
[328339391,1717188646665,-500.0,0.00032876,11]
[328339393,1717188646675,-500.0,0.00032876,11]
[328339395,1717188646684,-500.0,0.00032876,11]
[328339397,1717188646693,-500.0,0.00032876,11]
[328339399,1717188646702,-500.0,0.00032876,11]
[328339401,1717188646711,-500.0,0.00032876,11]
[328339403,1717188646720,-221.0,0.00032876,11]
[328339405,1717188646729,-500.0,0.00032876,11]
[328339407,1717188646738,-421.26,0.00032876,11]
[328339409,1717188646749,-260.28687417,0.00032876,11]
[328339411,1717188646759,-500.0,0.00032876,11]
[328339412,1717188646768,-249.85034078,0.00032876,11]
[328339414,1717188646777,-500.0,0.00032876,11]
[328339416,1717188646787,-500.0,0.00032876,11]
[328339418,1717188646796,-500.0,0.00032876,11]
[328339420,1717188646806,-500.0,0.00032876,11]
[328339422,1717188646815,-500.0,0.00032876,11]
[328339424,1717188646824,-500.0,0.00032876,11]
[328339426,1717188646839,-4373.422989,0.00032876,7]
[328339428,1717188646848,-500.0,0.00032876,11]
[328339430,1717188646859,-500.0,0.00032876,11]
[328339432,1717188646869,-4373.422989,0.00032876,7]
[328339434,1717188646879,-500.0,0.00032876,11]
[328339436,1717188646888,-500.0,0.00032876,11]
[328339438,1717188646897,-4373.422989,0.00032876,7]
[328339440,1717188646907,-4373.422989,0.00032876,7]
[328339442,1717188646916,-500.0,0.00032876,11]
[328339444,1717188646926,-4373.422989,0.00032876,7]
[328339446,1717188646935,-500.0,0.00032876,11]
[328339448,1717188646944,-4373.422989,0.00032876,7]
[328339450,1717188646953,-500.0,0.00032876,11]
[328339452,1717188646963,-500.0,0.00032876,11]
[328339454,1717188646972,-500.0,0.00032876,11]
[328339455,1717188646981,-500.0,0.00032876,11]
[328339456,1717188646991,-500.0,0.00032876,11]
[328339458,1717188647001,-500.0,0.00032876,11]
[328339460,1717188647010,-500.0,0.00032876,11]
[328339462,1717188647019,-500.0,0.00032876,11]
[328339464,1717188647028,-500.0,0.00032876,11]
[328339466,1717188647037,-500.0,0.00032876,11]
[328339468,1717188647048,-500.0,0.00032876,11]
[328339470,1717188647057,-4373.422989,0.00032876,7]
[328339472,1717188647066,-500.0,0.00032876,11]
[328339474,1717188647075,-4373.422989,0.00032876,7]
[328339476,1717188647084,-500.0,0.00032876,11]
[328339478,1717188647094,-4373.422989,0.00032876,7]
[328339480,1717188647104,-4373.422989,0.00032876,7]
[328339482,1717188647113,-4373.422989,0.00032876,7]
[328339484,1717188647122,-4373.422989,0.00032876,7]
[328339486,1717188647131,-500.0,0.00032876,11]
[328339488,1717188647140,-500.0,0.00032876,11]
[328339490,1717188647149,-500.0,0.00032876,11]
[328339492,1717188647158,-500.0,0.00032876,11]
[328339494,1717188647167,-500.0,0.00032876,11]
[328339496,1717188647177,-500.0,0.00032876,11]
[328339498,1717188647186,-500.0,0.00032876,11]
[328339500,1717188647195,-500.0,0.00032876,11]
[328339502,1717188647205,-399.39089636,0.00032876,11]
[328339504,1717188647214,-500.0,0.00032876,11]
[328339506,1717188647224,-461.73848003,0.00032876,11]
[328339508,1717188647233,-769.0,0.00032877,4]
[328339510,1717188647243,-151.0,0.00032877,7]
[328339512,1717188647252,-237.353113,0.00032877,7]
[328339514,1717188647262,-418.49375025,0.0003288,2]
[328339516,1717188647271,-500.0,0.00032888,11]
[328339518,1717188647279,-500.0,0.00032888,11]
[328339520,1717188647288,-176.71,0.00032888,11]
[328339522,1717188647297,-500.0,0.00032888,11]
[328339524,1717188647306,-500.0,0.00032888,11]
[328339526,1717188647315,-500.0,0.00032888,11]
[328339528,1717188647324,-341.10671223,0.00032888,11]
[328339530,1717188647333,-500.0,0.00032888,11]
[328339532,1717188647343,-500.0,0.00032888,11]
[328339534,1717188647353,-500.0,0.00032888,11]
[328339536,1717188647362,-500.0,0.00032888,11]
[328339538,1717188647371,-500.0,0.00032888,11]
[328339540,1717188647380,-500.0,0.00032888,11]
[328339542,1717188647390,-500.0,0.00032888,11]
[328339543,1717188647399,-500.0,0.00032888,11]
[328339544,1717188647408,-500.0,0.00032888,11]
[328339546,1717188647418,-500.0,0.00032888,11]
[328339548,1717188647427,-500.0,0.00032888,11]
[328339550,1717188647436,-495.64700161,0.00032888,11]
[328339552,1717188647445,-606.77,0.00032888,11]
[328339554,1717188647454,-500.0,0.00032888,11]
[328339556,1717188647463,-500.0,0.00032888,11]
[328339558,1717188647472,-500.0,0.00032888,11]
[328339560,1717188647482,-500.0,0.00032889,11]
[328339562,1717188647491,-500.0,0.00032889,11]
[328339564,1717188647500,-500.0,0.00032889,11]
[328339566,1717188647509,-500.0,0.00032889,11]
[328339568,1717188647518,-500.0,0.00032889,11]
[328339570,1717188647527,-500.0,0.00032889,11]
[328339572,1717188647536,-500.0,0.00032889,11]
[328339574,1717188647545,-500.0,0.00032889,11]
[328339576,1717188647555,-294.08,0.00032889,11]
[328339578,1717188647564,-570.79108486,0.00032889,11]
[328339580,1717188647573,-500.0,0.00032889,11]
[328339582,1717188647582,-500.0,0.00032889,11]
[328339584,1717188647591,-500.0,0.00032889,11]
[328339586,1717188647601,-500.0,0.00032889,11]
[328339588,1717188647610,-520.79,0.00032889,11]
[328339590,1717188647619,-151.0,0.00032889,7]
[328339591,1717188647628,-500.0,0.00032889,11]
[328339592,1717188647637,-190.624886,0.00032889,7]
[328339593,1717188647646,-350.81877521,0.00032889,11]
[328339594,1717188647655,-500.0,0.00032889,11]
[328339595,1717188647664,-190.624886,0.00032889,7]
[328339596,1717188647673,-500.0,0.00032889,11]
[328339597,1717188647682,-500.0,0.00032889,11]
[328339598,1717188647691,-500.0,0.00032889,11]
[328339599,1717188647700,-500.0,0.00032889,11]
[328339600,1717188647709,-500.0,0.00032889,11]
[328339601,1717188647718,-500.0,0.00032889,11]
[328339602,1717188647727,-500.0,0.00032889,11]
[328339603,1717188647736,-500.0,0.00032889,11]
[328339604,1717188647745,-512.3,0.00032889,11]
[328339605,1717188647757,-500.0,0.00032889,11]
[328339607,1717188647766,-151.0,0.00032889,7]
[328339608,1717188647775,-500.0,0.00032889,11]
[328339609,1717188647785,-205.39524245,0.00032889,11]
[328339610,1717188647794,-342.43804451,0.00032889,11]
[328339611,1717188647803,-500.0,0.00032889,11]
[328339612,1717188647812,-699.335087,0.00032889,7]
[328339613,1717188647821,-808.4,0.00032889,11]
[328339614,1717188647833,-808.4,0.00032889,11]
[328339615,1717188647842,-699.335087,0.00032889,7]
[328339616,1717188647852,-578.4,0.00032889,2]
[328339617,1717188647861,-578.4,0.00032889,2]
[328339618,1717188647870,-500.0,0.00032889,11]
[328339619,1717188647879,-500.0,0.00032889,11]
[328339620,1717188647888,-500.0,0.00032889,11]
[328339621,1717188647897,-500.0,0.00032889,11]
[328339622,1717188647907,-500.0,0.00032889,11]
[328339623,1717188647915,-500.0,0.00032889,11]
[328339624,1717188647924,-500.0,0.00032889,11]
[328339625,1717188647934,-500.0,0.00032889,11]
[328339626,1717188647943,-500.0,0.00032889,11]
[328339627,1717188647952,-615.33411278,0.00032889,11]
[328339628,1717188647961,-500.0,0.00032889,11]
[328339629,1717188647970,-500.0,0.00032889,11]
[328339630,1717188647980,-500.0,0.00032889,11]
[328339631,1717188647990,-456.46888316,0.00032889,11]
[328339632,1717188647999,-500.0,0.00032889,11]
[328339633,1717188648008,-500.0,0.00032889,11]
[328339634,1717188648017,-500.0,0.00032889,11]
[328339635,1717188648027,-659.44,0.00032889,11]
[328339636,1717188648036,-500.0,0.00032889,11]
[328339637,1717188648044,-500.0,0.00032889,11]
[328339638,1717188648054,-606.77,0.00032889,11]
[328339639,1717188648063,-500.0,0.00032889,11]
[328339640,1717188648072,-500.0,0.00032889,11]
[328339641,1717188648081,-500.0,0.00032889,11]
[328339642,1717188648090,-500.0,0.00032889,11]
[328339643,1717188648099,-500.0,0.00032889,11]
[328339644,1717188648109,-500.0,0.00032889,11]
[328339645,1717188648118,-500.0,0.00032889,11]
[328339646,1717188648126,-500.0,0.00032889,11]
[328339647,1717188648136,-500.0,0.00032889,11]
[328339648,1717188648144,-500.0,0.00032889,11]
[328339649,1717188648154,-500.0,0.00032889,11]
[328339650,1717188648163,-500.0,0.00032889,11]
[328339651,1717188648172,-500.0,0.00032889,11]
[328339652,1717188648181,-158.31215,0.00032889,7]
[328339653,1717188648190,-158.312146,0.00032889,7]
[328339654,1717188648199,-500.0,0.00032889,11]
[328339655,1717188648209,-500.0,0.00032889,11]
[328339656,1717188648218,-500.0,0.00032889,11]
[328339657,1717188648228,-500.0,0.00032889,11]
[328339658,1717188648237,-500.0,0.00032889,11]
[328339659,1717188648246,-500.0,0.00032889,11]
[328339660,1717188648255,-500.0,0.00032889,11]
[328339661,1717188648264,-500.0,0.00032889,11]
[328339662,1717188648273,-500.0,0.00032889,11]
[328339663,1717188648282,-4373.422989,0.00032889,7]
[328339664,1717188648292,-500.0,0.00032889,11]
[328339665,1717188648301,-327.77948663,0.00032889,11]
[328339666,1717188648310,-500.0,0.00032889,11]
[328339667,1717188648319,-4373.422988,0.00032889,7]
[328339668,1717188648328,-500.0,0.00032889,11]
[328339669,1717188648337,-156751.9734424,0.0003289,2]
[328339670,1717188648514,-238.926062,0.00025954,7]
[328339671,1717188648524,-151.0,0.00025954,7]
[328339672,1717188648533,-238.926062,0.00031388,7]
[328339673,1717188648542,-238.926062,0.00032865,7]
[328339674,1717188648551,-238.926062,0.00032876,7]
[328339675,1717188648560,-238.926062,0.00032876,7]
[328339676,1717188648570,-238.926062,0.00032876,7]
[328339677,1717188648579,-25641.843628,0.0003289,2]
[328339678,1717188648590,-978.43014116,0.0003289,2]
[328339679,1717188648602,-875.75770239,0.0003289,2]
[328339680,1717188648622,-238.926062,0.00032876,7]
[328339681,1717188648631,-238.926062,0.00032876,7]
[328339682,1717188648640,-251.253876,0.0003289,2]
[328339683,1717188648673,-238.926062,0.00032876,7]
[328339684,1717188648682,-372.02242487,0.0003289,2]
[328339685,1717188648711,-238.926062,0.00025954,7]
[328339686,1717188648720,-238.926062,0.00031388,7]
[328339687,1717188648730,-238.926062,0.00032865,7]
[328339688,1717188648739,-238.926062,0.00032889,7]
[328339689,1717188648751,-4174.8677563,0.0003289,2]
[328339690,1717188648763,-3019.74359619,0.0003289,2]
[328339691,1717188648774,-532.60262073,0.0003289,2]
[328339692,1717188648788,-31751.824,0.0003289,2]
[328339693,1717188648799,-6712.54514931,0.0003289,2]
[328339694,1717188648830,-4767.05993806,0.0003289,2]
[328339695,1717188648900,-238.926062,0.00032876,7]
[328339696,1717188648909,-65.537027,0.00032876,7]
[328339697,1717188648921,-173.389035,0.00032876,7]
[328339698,1717188648931,-238.926062,0.00032876,7]
[328339699,1717188648940,-136.99678027,0.00032876,7]
[328339700,1717188648951,-101.92928173,0.00032876,7]
[328339701,1717188648960,-238.926062,0.00032876,7]
[328339702,1717188648969,-238.926062,0.00032876,7]
[328339703,1717188648978,-238.92606,0.00032889,7]
[328339704,1717188648988,-129.78010071,0.0003289,2]
[328339708,1717188706876,400.0,0.00034817,120]
[328339711,1717188850604,1130.39293585,0.00033298,120]
[328339723,1717189559114,-1504.29971555,0.00016382,2]
[328339732,1717189647105,-252.89515552,0.00016372,2]
[328339733,1717189647127,-626.81012107,0.00016373,2]
[328339736,1717189832379,-361.9806066,0.00016195,2]
[328339737,1717189832389,-216.0584934,0.00016195,2]
[328339738,1717189832401,-569.02736786,0.00016195,2]
[328339739,1717189832411,-4436.90604673,0.00016195,2]
[328339740,1717189832420,-1065.89322203,0.00016196,2]
[328339741,1717189832430,-1275.09803465,0.00016196,2]
[328339742,1717189832442,-2366.67503742,0.00016196,2]
[328339743,1717189832452,-574.21154473,0.00016197,7]
[328339744,1717189832462,-524.41258543,0.00016198,2]
[328339745,1717189832470,-268.78049174,0.00016199,2]
[328339746,1717189832480,-205.30156829,0.00016199,2]
[328339747,1717189832489,-718.3503353,0.00016199,2]
[328339748,1717189832499,-1804.97864459,0.00016199,2]
[328339749,1717189832511,-1241.72374471,0.00016199,2]
[328339778,1717189838711,-251.23012888,0.00016194,2]
[328339779,1717189838722,-306.89581526,0.00016194,2]
[328339780,1717189838731,-10958.18144295,0.00016195,2]
[328339781,1717189838741,-5049.47756256,0.00016199,2]
[328339782,1717189838750,-168.21493625,0.000162,2]
[328339783,1717189838759,-4284.68586271,0.000162,2]
[328339784,1717189838768,-494.9226198,0.00016209,2]
[328339785,1717189838777,-3095.99132127,0.0001621,2]
[328339786,1717189838787,-269.45788904,0.00016213,2]
[328339787,1717189838797,-358.86,0.00016213,2]
[328339788,1717189838806,-10419.56,0.00016213,2]
[328339789,1717189838815,-1045.47618149,0.00016373,2]
[328339790,1717189838825,-180.4359283,0.00016373,2]
[328339791,1717189838834,-1046.85089766,0.00016377,2]
[328339793,1717189838843,-1234.57530883,0.00016377,2]
[328339795,1717189838853,-242.44,0.00016377,2]
[328339796,1717189838862,-155.21478332,0.00016513,2]
[328339797,1717189838871,-499.99,0.00016513,2]
[328339798,1717189838880,-155.0,0.00016518,2]
[328339799,1717189838890,-5720.37,0.00016518,2]
[328339800,1717189838900,-299.99,0.00016518,4]
[328339801,1717189838909,-1247.78625394,0.00016537,2]
[328339802,1717189838919,-1210.37057204,0.00016645,2]
[328339803,1717189838928,-25076.30692607,0.00016645,2]
[328339804,1717189838938,-946.4753,0.00016645,2]
[328339805,1717189838948,-500.0,0.00016645,2]
[328339806,1717189838957,-500.0,0.00016645,2]
[328339807,1717189838967,-500.0,0.00016645,2]
[328339808,1717189838976,-500.0,0.00016645,2]
[328339809,1717189838985,-500.0,0.00016645,2]
[328339810,1717189838995,-500.0,0.00016645,2]
[328339811,1717189839004,-500.0,0.00016645,2]
[328339812,1717189839014,-500.0,0.00016645,2]
[328339813,1717189839023,-500.0,0.00016645,2]
[328339814,1717189839032,-500.0,0.00016645,2]
[328339815,1717189839042,-500.0,0.00016645,2]
[328339816,1717189839051,-500.0,0.00016645,2]
[328339817,1717189839061,-500.0,0.00016645,2]
[328339818,1717189839070,-500.0,0.00016645,2]
[328339819,1717189839080,-669.0,0.00016645,2]
[328339820,1717189839090,-179.42,0.00016712,2]
[328339821,1717189839099,-209.92398111,0.000171,2]
[328339822,1717189839109,-209.92398111,0.000171,2]
[328339823,1717189839123,-209.92398111,0.000171,2]
[328339824,1717189839133,-618.09,0.00017871,2]
[328339825,1717189839142,-155.0,0.00019,2]
[328339826,1717189839152,-11599.63,0.00019859,2]
[328339827,1717189839163,-11458.33964221,0.000199,2]
[328339828,1717189839173,-3544.25,0.00019906,2]
[328339829,1717189839182,-422.38,0.00019955,2]
[328339830,1717189839194,-158.77642645,0.0002,2]
[328339831,1717189839205,-155.0,0.0002,2]
[328339832,1717189839214,-155.0,0.0002,2]
[328339833,1717189839224,-155.0,0.0002,2]
[328339834,1717189839233,-155.0,0.0002,2]
[328339835,1717189839243,-6250.33014992,0.0002,2]
[328339836,1717189839252,-187.20328758,0.0002,2]
[328339837,1717189839261,-250.0,0.00020041,2]
[328339838,1717189839270,-23900.0,0.00020056,2]
[328339839,1717189839279,-226.49538654,0.000201,2]
[328339840,1717189839288,-618.09,0.00020135,2]
[328339841,1717189839298,-500.0,0.0002019,2]
[328339842,1717189839307,-250.0,0.0002019,2]
[328339843,1717189839316,-500.0,0.00020193,2]
[328339844,1717189839325,-150.0,0.00020218,2]
[328339845,1717189839335,-2216.68,0.00020218,2]
[328339846,1717189839344,-169.1,0.0002029,2]
[328339847,1717189839353,-757.38,0.0002043,2]
[328339848,1717189839363,-2751.0,0.00020439,2]
[328339849,1717189839372,-327.28,0.00020461,2]
[328339850,1717189839381,-156.1,0.00020501,2]
[328339851,1717189839390,-156.1,0.00020768,2]
[328339852,1717189839399,-156.1,0.00021035,2]
[328339853,1717189839408,-156.1,0.00021302,2]
[328339854,1717189839417,-200.0,0.00021437,2]
[328339855,1717189839427,-175.235,0.00021525,2]
[328339856,1717189839436,-156.1,0.00021569,2]
[328339857,1717189839446,-300.0,0.00021569,2]
[328339858,1717189839459,-177.16,0.00021918,2]
[328339859,1717189839468,-2000.0,0.00021918,2]
[328339860,1717189839477,-250.0,0.00021918,2]
[328339861,1717189839486,-581.73113868,0.00022,2]
[328339862,1717189839496,-5980.13,0.00022115,2]
[328339863,1717189839505,-150.0,0.0002222,2]
[328339864,1717189839515,-618.09,0.00022399,2]
[328339865,1717189839524,-422.38,0.0002245,2]
[328339866,1717189839533,-11458.3396422,0.00022497,2]
[328339867,1717189839543,-175.235,0.00022655,2]
[328339868,1717189839552,-226.2,0.0002273,2]
[328339869,1717189839562,-250.0,0.00022768,2]
[328339870,1717189839572,-577.62,0.00022773,2]
[328339871,1717189839581,-264.03,0.00022798,2]
[328339872,1717189839591,-1657.0,0.000228,3]
[328339873,1717189839600,-300.0,0.00022939,2]
[328339874,1717189839610,-350.0,0.00023316,2]
[328339875,1717189839619,-232.0,0.0002385,2]
[328339876,1717189839629,-545.54297139,0.00023864,2]
[328339877,1717189839638,-175.235,0.00023904,2]
[328339878,1717189839647,-4461.76,0.00023989,2]
[328339879,1717189839657,-473.22827161,0.00024,2]
[328339880,1717189839666,-180.0,0.0002423,2]
[328339881,1717189839675,-159.16,0.00024384,2]
[328339882,1717189839684,-618.09,0.00024663,2]
[328339883,1717189839695,-306.36886894,0.00024797,2]
[328339884,1717189839705,-500.0,0.00024797,2]
[328339885,1717189839715,-500.0,0.00024797,2]
[328339886,1717189839724,-500.0,0.00024797,2]
[328339887,1717189839734,-500.0,0.00024797,2]
[328339888,1717189839743,-500.0,0.00024797,2]
[328339889,1717189839752,-500.0,0.00024797,2]
[328339890,1717189839762,-500.0,0.00024797,2]
[328339891,1717189839772,-632.77826589,0.00024797,2]
[328339892,1717189839781,-500.0,0.00024797,2]
[328339893,1717189839791,-500.0,0.00024797,2]
[328339894,1717189839800,-500.0,0.00024797,2]
[328339895,1717189839810,-500.0,0.00024797,2]
[328339896,1717189839820,-500.0,0.00024797,2]
[328339897,1717189839829,-479.79471043,0.00024797,2]
[328339898,1717189839838,-500.0,0.00024797,2]
[328339899,1717189839848,-500.0,0.00024797,2]
[328339900,1717189839857,-500.0,0.00024797,2]
[328339901,1717189839866,-500.0,0.00024797,2]
[328339902,1717189839876,-500.0,0.00024797,2]
[328339903,1717189839885,-500.0,0.00024797,2]
[328339904,1717189839895,-500.0,0.00024797,2]
[328339905,1717189839904,-500.0,0.00024797,2]
[328339906,1717189839914,-186.99166123,0.00024797,2]
[328339907,1717189839924,-500.0,0.00024797,2]
[328339908,1717189839933,-500.0,0.00024797,2]
[328339909,1717189839945,-500.0,0.00024797,2]
[328339910,1717189839955,-500.0,0.00024797,2]
[328339911,1717189839965,-500.0,0.00024797,2]
[328339912,1717189839974,-500.0,0.00024797,2]
[328339913,1717189839984,-500.0,0.00024797,2]
[328339914,1717189839994,-500.0,0.00024797,2]
[328339915,1717189840004,-500.0,0.00024797,2]
[328339916,1717189840014,-500.0,0.00024797,2]
[328339917,1717189840024,-500.0,0.00024797,2]
[328339918,1717189840033,-500.0,0.00024797,2]
[328339919,1717189840043,-500.0,0.00024797,2]
[328339920,1717189840052,-500.0,0.00024797,2]
[328339921,1717189840062,-500.0,0.00024797,2]
[328339922,1717189840072,-500.0,0.00024797,2]
[328339923,1717189840082,-500.0,0.00024797,2]
[328339924,1717189840092,-500.0,0.00024797,2]
[328339925,1717189840102,-500.0,0.00024797,2]
[328339926,1717189840115,-500.0,0.00024797,2]
[328339927,1717189840126,-500.0,0.00024797,2]
[328339928,1717189840136,-500.0,0.00024797,2]
[328339929,1717189840146,-500.0,0.00024797,2]
[328339930,1717189840157,-500.0,0.00024797,2]
[328339931,1717189840166,-500.0,0.00024797,2]
[328339932,1717189840177,-500.0,0.00024797,2]
[328339933,1717189840187,-500.0,0.00024797,2]
[328339934,1717189840197,-500.0,0.00024797,2]
[328339935,1717189840206,-500.0,0.00024797,2]
[328339936,1717189840216,-500.0,0.00024797,2]
[328339937,1717189840225,-500.0,0.00024797,2]
[328339938,1717189840235,-500.0,0.00024797,2]
[328339939,1717189840244,-500.0,0.00024797,2]
[328339940,1717189840254,-500.0,0.00024797,2]
[328339941,1717189840264,-500.0,0.00024797,2]
[328339942,1717189840274,-500.0,0.00024797,2]
[328339943,1717189840284,-500.0,0.00024797,2]
[328339944,1717189840294,-500.0,0.00024797,2]
[328339945,1717189840303,-500.0,0.00024797,2]
[328339946,1717189840312,-500.0,0.00024797,2]
[328339947,1717189840322,-500.0,0.00024797,2]
[328339948,1717189840331,-500.0,0.00024797,2]
[328339949,1717189840341,-500.0,0.00024797,2]
[328339950,1717189840351,-500.0,0.00024797,2]
[328339951,1717189840360,-612.14364844,0.00024797,2]
[328339952,1717189840370,-500.0,0.00024797,2]
[328339953,1717189840380,-500.0,0.00024797,2]
[328339954,1717189840389,-500.0,0.00024797,2]
[328339955,1717189840399,-500.0,0.00024797,2]
[328339956,1717189840408,-500.0,0.00024797,2]
[328339957,1717189840418,-500.0,0.00024797,2]
[328339958,1717189840427,-500.0,0.00024797,2]
[328339959,1717189840436,-500.0,0.00024797,2]
[328339960,1717189840447,-500.0,0.00024797,2]
[328339961,1717189840458,-500.0,0.00024797,2]
[328339962,1717189840471,-500.0,0.00024797,2]
[328339963,1717189840486,-500.0,0.00024797,2]
[328339964,1717189840495,-500.0,0.00024797,2]
[328339965,1717189840505,-500.0,0.00024797,2]
[328339966,1717189840514,-500.0,0.00024797,2]
[328339967,1717189840524,-500.0,0.00024797,2]
[328339968,1717189840533,-500.0,0.00024797,2]
[328339969,1717189840543,-500.0,0.00024797,2]
[328339970,1717189840552,-500.0,0.00024797,2]
[328339971,1717189840562,-500.0,0.00024797,2]
[328339972,1717189840571,-200.0,0.00024797,2]
[328339973,1717189840580,-500.0,0.00024797,2]
[328339974,1717189840590,-500.0,0.00024797,2]
[328339975,1717189840599,-500.0,0.00024797,2]
[328339976,1717189840612,-422.38,0.00024944,2]
[328339977,1717189840622,-60532.21642058,0.00024952,2]
[328339978,1717189840631,-232.0,0.0002504,2]
[328339979,1717189840641,-11458.3396422,0.00025187,2]
[328339980,1717189840650,-4461.76,0.00025188,2]
[328339981,1717189840658,-175.235,0.00025288,2]
[328339982,1717189840668,-169.1,0.00025362,2]
[328339983,1717189840677,-577.62,0.0002562,2]
[328339984,1717189840686,-3896.23,0.00025786,2]
[328339985,1717189840697,-60532.21642058,0.0002613,2]
[328339986,1717189840707,-1242.53191838,0.0002614,2]
[328339987,1717189840716,-232.0,0.0002624,2]
[328339988,1717189840727,-4461.76,0.00026388,2]
[328339989,1717189840737,-509.72,0.00026585,2]
[328339990,1717189840746,-2662.49,0.00026816,2]
[328339991,1717189840755,-5184.91,0.00026816,2]
[328339992,1717189840764,-2662.49,0.00026824,2]
[328339993,1717189840774,-175.235,0.00026824,2]
[328339994,1717189840783,-2662.49,0.00026831,2]
[328339995,1717189840792,-2662.49,0.00026838,2]
[328339996,1717189840801,-2662.49,0.00026845,2]
[328339997,1717189840811,-2662.49,0.00026852,2]
[328339998,1717189840820,-2662.49,0.00026859,2]
[328339999,1717189840829,-2662.49,0.00026866,2]
[328340000,1717189840839,-2662.49,0.00026873,2]
[328340001,1717189840849,-2662.49,0.0002688,2]
[328340002,1717189840859,-2662.49,0.00026887,2]
[328340003,1717189840868,-2662.49,0.00026894,2]
[328340004,1717189840877,-2662.49,0.00026901,2]
[328340005,1717189840887,-151.0,0.00026908,7]
[328340006,1717189840896,-151.0,0.00026908,7]
[328340007,1717189840906,-290.551098,0.00026908,7]
[328340008,1717189840915,-204.845681,0.00026908,7]
[328340009,1717189840924,-290.551098,0.00026908,7]